Cogmind - Beta 13 @@@ ROGUE MODE // 2024.04.06 @ 15:04:37 Player: Varatnar Result: Destroyed self with Mini Grenade Launcher Performance ------------- Evolutions (1) 500 Regions Visited (2) 400 Robots Destroyed (40) 200 Value Destroyed (1185) 1185 Prototype IDs (5) 100 Alien Tech Used (0) 0 Bonus (141) 141 TOTAL SCORE: 2526 Bonus ------- High Alert Combat Kills 141 Cogmind --------- Core Integrity 0/400 Matter 160/300 Energy 100/100 System Corruption 20% Temperature Cool (0) Movement Treading (160) Location -9/Materials Parts ------- > --- POWER (2) -------- (None) > --- PROPULSION (2) --- Light Treads > --- UTILITY (3) ------ Medium Storage Unit Structural Scanner Improved Targeting Computer > --- WEAPON (2) ------- Mini Grenade Launcher > --- INVENTORY (10) --- Improved Ion Engine Improved Ion Engine Cooled Ion Engine Wheel Wheel Heat Sink Disposable Heat Sink Signal Interpreter Light Assault Rifle Light Assault Rifle Peak State ------------ > --- POWER ------------ Cooled Ion Engine Cooled Ion Engine > --- PROPULSION ------- Light Treads Light Treads > --- UTILITY ---------- Medium Storage Unit Structural Scanner Improved Targeting Computer > --- WEAPON ----------- Mini Grenade Launcher Mini Grenade Launcher > --- INVENTORY -------- Improved Ion Engine Improved Ion Engine Cooled Ion Engine Wheel Wheel Heat Sink Disposable Heat Sink Signal Interpreter Light Assault Rifle Light Assault Rifle [Rating: 17] Favorites ----------- Power Cooled Ion Engine Engine Cooled Ion Engine Propulsion Light Treads Treads Light Treads Wheel Wheel Hover Unit Hover Unit Utility Medium Storage Unit Device Heat Sink Storage Medium Storage Unit Processor Improved Targeting Computer Weapon Light Assault Rifle Energy Gun EM Pulse Gun Ballistic Gun Light Assault Rifle Launcher Mini Grenade Launcher Build | -11 -10 -9 ------- Run | Yrd Mat Mat Slots Evolved 2 | . . 2 Power 1 | . . 1 Propulsion . | . . . Utility 1 | . . 1 Weapon . | . . . Parts Attached 47 | 7 6 34 Power 9 | 2 1 6 Engine 9 | 2 1 6 Core . | . . . Reactor . | . . . Propulsion 13 | 2 3 8 Treads 4 | . 1 3 Leg . | . . . Wheel 8 | 2 2 4 Hover 1 | . . 1 Flight . | . . . Utility 10 | 1 2 7 Device 6 | 1 1 4 Storage 2 | . 1 1 Processor 2 | . . 2 Hackware . | . . . Protection . | . . . Artifact . | . . . Weapon 15 | 2 . 13 Energy Gun 2 | . . 2 Energy Cannon . | . . . Ballistic Gun 7 | 2 . 5 Ballistic Cannon . | . . . Launcher 6 | . . 6 Special Weapon . | . . . Impact Weapon . | . . . Slashing Weapon . | . . . Piercing Weapon . | . . . Special Melee Weapon . | . . . Unidentified Prototypes 1 | . . 1 Parts Lost 18 | . . 18 Power 7 | . . 7 Propulsion 3 | . . 3 Utility 3 | . . 3 Weapon 5 | . . 5 Highest Loss Streak 8 | . . 8 To Critical Strikes 1 | . . 1 Average Slot Usage (%) 96 | . 97 96 Engine 18 | . 14 20 Treads 10 | . . 13 Wheel 12 | . 27 8 Device 10 | . 14 9 Storage 16 | . 11 17 Processor 4 | . . 5 Energy Gun 1 | . . 2 Ballistic Gun 19 | . 28 17 Naked Turns . | . . . Heaviest Build 32 | 10 13 32 Greatest Support 40 | 20 26 40 Greatest Overweight (x) 4 | . . 4 Average Overweight (x) . | . . . Largest Inventory Capacity 10 | 5 5 10 Average Capacity 8 | 5 5 9 Most Carried 10 | 3 5 10 Average Carried 7 | . 4 8 Final Capacity 10 | 5 5 10 Final Carried 10 | 2 5 10 Class Distribution -------------------- 56% | Scavenger-Mutant 43% | Mutant Dominant Class ---------------- Mutant | -10/Materials Scavenger-Mutant | -9/Materials Resources | -11 -10 -9 ----------- Run | Yrd Mat Mat Matter Collected 1167 | 273 264 630 Remotely . | . . . Salvage Created 1221 | 48 179 994 Parts 92 | 3 7 82 Haulers Intercepted 1 | . . 1 Recyclers Shooed 1 | . . 1 Parts Field Recycled . | . . . Retrieved Matter . | . . . Parts Self-Destructed . | . . . Prevented . | . . . Kills | -11 -10 -9 ------- Run | Yrd Mat Mat Combat Hostiles Destroyed 29 | 1 4 24 Guns 17 | 1 4 12 AOE 12 | . . 12 Classes Destroyed 10 | 1 . 9 Worker 1 | . . 1 Builder 2 | . . 2 Tunneler 1 | . . 1 Hauler 1 | . . 1 Mechanic 1 | . . 1 Watcher 5 | . . 5 Swarmer 2 | . . 2 Grunt 20 | 1 4 15 Brawler 1 | . . 1 Sentry 6 | . . 6 Best Kill Streak 11 | 1 2 11 Combat Bots Only 6 | 1 2 6 Max Kills in Single Turn 5 | 1 1 5 Gunslinging . | . . . Exploded 3 | . . 3 Melee . | . . . Uniques/NPCs Destroyed . | . . . Combat | -11 -10 -9 -------- Run | Yrd Mat Mat Hostile Shots Fired 229 | 1 46 182 Missed 70 | . 15 55 Damage Taken 2239 | 10 342 1887 Core 479 | . 76 403 Absorbed by Shields 32 | . . 32 Core Remaining (%) 84 | 100 69 . Volleys Fired 107 | 1 22 84 Largest 2 | 2 2 2 Hottest 60 | 40 40 60 Shots Fired 182 | 2 43 137 Gun 152 | 2 43 107 Cannon . | . . . Launcher 30 | . . 30 Special . | . . . Kinetic 125 | 2 43 80 Thermal 11 | . . 11 Explosive 30 | . . 30 Electromagnetic 16 | . . 16 Robot Hit Streak 14 | 1 7 14 Robot Miss Streak 4 | 1 3 4 Penetration Max . | . . . Secondary Targets 1 | . . 1 Max Gunslinging Chain 1 | . . 1 Shots Hit Robots 117 | 1 28 88 Core Hits 78 | 1 9 68 Critical Kills 1 | . . 1 Critical Parts Destroyed . | . . . Critical Strikes 1 | . . 1 Destroy 1 | . . 1 Melee Attacks . | . . . Impact . | . . . Slashing . | . . . Piercing . | . . . Sneak Attacks . | . . . Combat Hostiles . | . . . Follow-up Attacks . | . . . Damage Inflicted 2649 | 15 347 2287 Guns 1087 | 15 347 725 Cannons . | . . . Explosions 1562 | . . 1562 Melee . | . . . Ramming . | . . . Kinetic 849 | 15 347 487 Thermal 84 | . . 84 Explosive 1521 | . . 1521 Electromagnetic 195 | . . 195 Impact . | . . . Slashing . | . . . Piercing . | . . . Highest Corruption 20 | . 1 20 Average Corruption 13 | . 1 18 Corruption Purged . | . . . Corruption Blocked . | . . . Effects 44 | . 3 41 Message Errors 14 | . . 14 Matter Fused 5 | . . 5 Heat Flow Errors 10 | . 1 9 Energy Discharges 1 | . . 1 Data Loss (minor) 6 | . . 6 Data Loss (major) 3 | . 1 2 Misfires 3 | . . 3 Weapon Failures 2 | . 1 1 Overload Shots . | . . . Overflow Damage 80 | . . 80 Projectiles . | . . . Explosions 80 | . . 80 Melee . | . . . Knockbacks . | . . . Impact . | . . . Kinetic . | . . . Secondary . | . . . Self-Inflicted Damage 284 | . . 284 Shots 11 | . . 11 Rammed . | . . . Targets Rammed . | . . . Kicked . | . . . Crushed . | . . . Highest Temperature 268 | . 81 268 Average Temperature 68 | . 51 68 Received Heat Transfer 688 | 6 132 550 Siege Activations . | . . . Robots Corrupted . | . . . Combat Hostiles . | . . . Parts Fried . | . . . Impact Corruptions . | . . . Robots Melted . | . . . Combat Hostiles . | . . . Parts Melted . | . . . Heat Transferred 150 | . . 150 Parts Sabotaged . | . . . Parts Stolen . | . . . Parts Stripped . | . . . Power Chain Reactions 1 | . . 1 Alert | -11 -10 -9 ------- Run | Yrd Mat Mat Peak Influence 646 | 20 224 646 Initial 94 | . 13 94 Average 307 | 7 128 382 Maximum Alert Level 2 | . 1 2 Low Security (%) 28 | 100 78 8 Level 1 26 | . 21 30 Level 2 44 | . . 61 Level 3 . | . . . Level 4 . | . . . Level 5 . | . . . High Security . | . . . Max Security . | . . . Squads Dispatched 7 | . 1 6 Investigation 2 | . . 2 Extermination . | . . . Reinforcement 4 | . 1 3 Assault 1 | . . 1 Garrison . | . . . Intercept . | . . . Searches Triggered . | . . . Construction Impeded . | . . . Haulers Reinforced . | . . . Active Scanning Responses . | . . . Cargo Convoy Interrupts . | . . . Stealth | -11 -10 -9 --------- Run | Yrd Mat Mat Distress Signals 6 | . 1 5 Communications Jammed . | . . . Distress Signals . | . . . Times Spotted 63 | 1 13 49 Peak Tracking Total 8 | 1 4 8 Tactical Retreats 5 | . 2 3 Traps | -11 -10 -9 ------- Run | Yrd Mat Mat Traps Triggered 1 | . . 1 Indirectly . | . . . Trap Hack Attempts . | . . . Triggered . | . . . Disarmed 1 | . . 1 Reprogrammed . | . . . Reused . | . . . Traps Extracted . | . . . Installed . | . . . Triggered . | . . . Machines | -11 -10 -9 ---------- Run | Yrd Mat Mat Machines Disabled 4 | . . 4 Max in Single Turn 1 | . . 1 Machines Repaired . | . . . Machines Dismantled . | . . . Machines Sabotaged . | . . . Overloaded Fab Kills . | . . . Hacking | -11 -10 -9 --------- Run | Yrd Mat Mat Machines Accessed 9 | . 2 7 Terminals 6 | . 2 4 Fabricators . | . . . Repair Stations . | . . . Recycling Units 1 | . . 1 Scanalyzers 2 | . . 2 Garrison Access . | . . . Total Hacks 36 | . 9 27 Successful 29 | . 9 20 Failed 7 | . . 7 Catastrophic 1 | . . 1 Database Lockouts . | . . . Manual 2 | . 2 . Terminals 24 | . 9 15 Fabricators . | . . . Repair Stations . | . . . Recycling Units 6 | . . 6 Scanalyzers 6 | . . 6 Garrison Access . | . . . Terminal Hacks 19 | . 9 10 Record 7 | . 5 2 Prototype ID Bank 2 | . 1 1 Emergency Access Points 2 | . 2 . Alert Level 1 | . 1 . Locate Traps 1 | . . 1 Disarm Traps 2 | . . 2 Dispatch Records 1 | . . 1 Maintenance Status 2 | . . 2 Registered Components 1 | . . 1 Fabricator Hacks . | . . . Repair Station Hacks . | . . . Recycling Unit Hacks 5 | . . 5 Recycle Component 1 | . . 1 Process 2 | . . 2 Retrieve Components 2 | . . 2 Scanalyzer 5 | . . 5 Insert Component 2 | . . 2 Analyze 3 | . . 3 Garrison Access Hacks . | . . . Unauthorized Hacks . | . . . Terminals . | . . . Fabricators . | . . . Repair Stations . | . . . Recycling Units . | . . . Scanalyzers . | . . . Garrison Access . | . . . Data Cores Recovered . | . . . Used . | . . . Hacking Detections 8 | . 2 6 Full Trace Events 3 | . 1 2 Feedback Events 1 | . 1 . Corruption 1 | . 1 . Feedback Blocked . | . . . Robot Schematics Acquired . | . . . Robots Built . | . . . Authchips . | . . . Time . | . . . Total Robot Build Rating . | . . . Part Schematics Acquired 1 | . . 1 Parts Built . | . . . Authchips . | . . . Time . | . . . Total Part Build Rating . | . . . Parts Repaired . | . . . Time . | . . . Parts Recycled 1 | . . 1 Recycled Matter 207 | . . 207 Retrieved Matter . | . . . Retrieved Components 1 | . . 1 Parts Scanalyzed 2 | . . 2 Part Schematics Acquired 1 | . . 1 Parts Damaged . | . . . Bothacking | -11 -10 -9 ------------ Run | Yrd Mat Mat Used RIF Installer . | . . . Robots Hacked . | . . . Non-combat . | . . . Combat . | . . . Robot Hacks Applied . | . . . Relay Couplers Released . | . . . Fabnet Peak Effective % . | . . . Robots Rewired . | . . . Allies Hacked . | . . . Hacks Repelled . | . . . Allies | -11 -10 -9 -------- Run | Yrd Mat Mat Total Allies . | . . . Largest Group . | . . . Highest-Rated Group . | . . . Highest-Rated Ally . | . . . Total Orders . | . . . Ally Attacks . | . . . Total Damage . | . . . Kills . | . . . Allies Corrupted . | . . . Allies Melted . | . . . Intel | -11 -10 -9 ------- Run | Yrd Mat Mat Robot Analysis Total . | . . . Derelict Logs Recovered . | . . . Drone Launches . | . . . Drone Recoveries . | . . . Exploration | -11 -10 -9 ------------- Run | Yrd Mat Mat Turns Passed 1776 | 91 388 1297 Spaces Moved 1153 | 86 343 724 Core 31 | 28 . 3 Treads 416 | . . 416 Legs . | . . . Wheels 706 | 58 343 305 Hover . | . . . Flight . | . . . Fastest Speed 50 | 50 80 90 Average Speed 115 | 70 86 134 Slowest Speed 250 | 80 90 250 Overloaded Moves . | . . . Propulsion Burnouts . | . . . Robots Hopped . | . . . Cave-ins Triggered . | . . . Exploration Rate (%) 28 | 6 33 47 Regions Visited 2 Branch Regions . Pre-discovered Areas . | . . . Known Exits Taken . | . . . Unknown Exits Taken 2 | 1 1 . Scrap Searched . | . . . Spaces Dug 19 | . . 19 Terrain Destroyed 110 | . . 110 Melee . | . . . Projectile . | . . . AOE 110 | . . 110 Terrain Rammed . | . . . Walls Destroyed . | . . . Machines Disabled . | . . . Actions | -11 -10 -9 --------- Run | Yrd Mat Mat Total 1425 | 113 393 919 Wait 59 | 13 7 39 Move 1151 | 85 342 724 Hop . | . . . Pick Up 40 | 7 7 26 Fast Attach 10 | 1 2 7 Attach 16 | 5 1 10 Detach 2 | . 1 1 Swap 21 | 1 3 17 Drop 19 | . 8 11 Fire 107 | 1 22 84 Melee . | . . . Ram . | . . . Kick . | . . . Crush . | . . . Escape Stasis . | . . . Rewire . | . . . Trap . | . . . Miscellaneous . | . . . Route ------- -11/Scrapyard -10/Materials -9/Materials (discovered 1 exit: [*Min]) History --------- Turn | Location | Event 2 | -11/Scrapyard | Met Revision 17 55 | -11/Scrapyard | Discovered new exit (range 8) 92 | -11/Scrapyard | Entered Materials 232 | -10/Materials | Discovered new exit (range 5) 314 | -10/Materials | Build established: Mutant 480 | -10/Materials | Entered another Materials area 480 | -9/Materials | Evolved 2 slots: Power x1, Utility x1 697 | -9/Materials | Lost 4 parts (2p2w) 811 | -9/Materials | Discovered new exit (range 11) 874 | -9/Materials | Core integrity fell below 50% 874 | -9/Materials | System corruption reached 10% 917 | -9/Materials | Lost 8 parts (3p2n2u1w) 1184 | -9/Materials | Build established: Scavenger-Mutant 1680 | -9/Materials | First assault squad dispatched 1751 | -9/Materials | Core integrity fell below 20% 1777 | -9/Materials | Destroyed self with Mini Grenade Launcher Last Messages --------------- U-05 Engineer lays Concrete. The unstable cave ceiling collapses. Med. Matter Pod crushed. U-05 Engineer lays Concrete. Cld. Ion Engine destroyed. U-05 Engineer lays Concrete. U-05 Engineer builds a Wall. The unstable cave ceiling collapses. U-05 Engineer builds a Wall. K-01 Serf collects debris. Lgt. Treads destroyed. The unstable cave ceiling collapses. U-05 Engineer lays Concrete. K-01 Serf collects debris. G-47 Trooper destroyed. [Achievement: First Step to Greatness] The achievement interface (ESC then open Records) offers an effective way to explore all of your earned achievements as well as seek out new goals for future runs. Map ----- +----------------------------------------------------+ | ################ """=""" # ##??????#####????? | | # """ """ #"S !!##??????########## | | # """ """ #""" ![########## ####### | | / # "" ########## ## | | # # #### # """ ## | | ?###+####### #| ####+###### "" # "T" ## | | ?# ## # + *%*%=!= T + ## | | ??????????## #####+##### ###### # !! ## | | ??????????## ##### ##### ######!!= # ! ## | | ??????????## ^ ##??###%#####/###### | | ??????????## ##??### ##### ###### | | ??????????## [[ ##+##???## | | ??????????##########^ [! # ???############### | | ??????????########## [! # ???############### | | ??????????????? # # ""??????# # | | ???????????????"" # + ""??????# # | | ??????????????""" #u =* # ""??????# """ # | | ????????????? ?"" =# ]*%%=k############# """ # | | ??????????###? ? ]%*=!%= + """ # | | ???????### # k * *%=*############## # | | ???????####+#####+# %! #########?#####+###### | | ???????## *%# ##????????## | | ???????## = !!! ##????????## | | ???????## # !! ##????????## "" | | ???????## ! ## ??????? # "R" | | ???????## # @ ### ? ?? # " " | | ?????????## # ?? # | | ????????? # # ????""" + | | ????????? # # ??????? # | | ????????? # """ = ""# ??????? # | | ????????? + "" ""# ???? ?? # | | ????????? # " ""# ?? ? ########## | | ????????? # """ r "" ##??##+#?########### | | ????????? # "" ##?### ############# | | ????????? # # ######### ############# | | ?????????## ###### | | ?????????## """ ? + | | ????????? # """ # " ##?## | | ????????? # """ #u """"" ##### """ | | ????????? # """ # """"" ##### """"" | | ????????? # """ / """"" ####" """" | | ????????? + ! # """"" ####T | | ????????? # *%= # """"" ####" | | ????????### #### # ##### | | ????????## "# ############## !! | | ????????## ???"# # ###?## ! | | ????????## ??? # # ########+######### | | ????????## ????"# / + + # + | | ????????## ????? # # % # # # # # | | ????????## ?????"# # / #% # """# # # | +----------------------------------------------------+ Best States ------------- Heat Dissipation 38 Energy Generation 23 Energy Capacity 460 Matter Stores 450 Matter Capacity 450 Sight Range 16 Terrain Scan Density 85 Evasion (%) 50 Targeting Accuracy 6 Recoil Reduction 2 Item Schematics ----------------- Mni. Grenade Launcher | -9/Materials | Scanalyzed Robot Schematics ------------------ None Fabricated ------------ Nothing Alien Tech Used ----------------- None Achievements -------------- Crack Shot First Step to Greatness Let's See Who's Tougher Loot Pinata Maybe Next Time I'll Detach My Launcher One Hack Too Far Risk Taker Significant Disruption System Compromised Uninvited Guest Challenges ------------ None Game ------ Seed GreatDrainedKit Manual? 0 Play Time 01:28:09 Cumulative 1.4 hours Start 2024.04.01 @ 16:11:15 End 2024.04.06 @ 15:04:37 Sessions 5 Manual Loads 0 Difficulty Rogue Special Mode None Game No. 1 Rogue 1 Adventurer 0 Explorer 0 Win Type - Total 0 Types 0/0/0/0/0/0/0/0/0 Lore% 1 Gallery% 2 Achievement% 3 Wizard Run 0 Options --------- Layout 1 ASCII 0 Keyboard 1 Movement Numpad Keybinds 0 Fullscreen 1 Font 24/Smallcaps Map View 50x35 Zoom Use 0% Tactical HUD 0 Map Filters NONE Filters NONE Steam 1 RUN: 661dc176-2342-4f7e-a1ca-b1ff78a5312a